[Event "Titled Tuesday Blitz March 14 Late 2023"]
[White "Melikhov, Evgeny V."]
[Black "Salgado Lopez, Ivan"]
[WhiteFideId "4122046"]
[BlackFideId "2257327"]
[WhiteElo "2158"]
[BlackElo "2571"]
[Result "1-0"]
[Round "10"]
[TimeControl "180+2"]
[Date "2023.03.14"]
[WhiteClock "0:01:17"]
[BlackClock "0:00:17"]

1. d4 {[%clk 0:03:00]}  d5 {[%clk 0:02:59]} 2. c4 {[%clk 0:03:00]}  c6 {[%clk 0:02:58]} 3. Nc3 {[%clk 0:03:01]}  Nf6 {[%clk 0:02:58]} 4. e3 {[%clk 0:03:01]}  a6 {[%clk 0:02:58]} 5. c5 {[%clk 0:03:00]}  g6 {[%clk 0:02:57]} 6. f4 {[%clk 0:03:00]}  Bg7 {[%clk 0:02:53]} 7. Nf3 {[%clk 0:03:00]}  Bg4 {[%clk 0:02:50]} 8. Be2 {[%clk 0:02:57]}  O-O {[%clk 0:02:49]} 9. h3 {[%clk 0:02:57]}  Bxf3 {[%clk 0:02:48]} 10. Bxf3 {[%clk 0:02:57]}  Nbd7 {[%clk 0:02:45]} 11. O-O {[%clk 0:02:57]}  Ne8 {[%clk 0:02:23]} 12. Bd2 {[%clk 0:02:54]}  f6 {[%clk 0:02:22]} 13. Nxd5 {[%clk 0:02:24]}  cxd5 {[%clk 0:02:18]} 14. Bxd5+ {[%clk 0:02:23]}  e6 {[%clk 0:02:08]} 15. Bxb7 {[%clk 0:02:05]}  Ra7 {[%clk 0:02:02]} 16. c6 {[%clk 0:01:57]}  Nb8 {[%clk 0:01:50]} 17. Qb3 {[%clk 0:01:48]}  Nc7 {[%clk 0:00:56]} 18. Qb6 {[%clk 0:01:38]}  Rxb7 {[%clk 0:00:41]} 19. cxb7 {[%clk 0:01:28]}  Nd5 {[%clk 0:00:35]} 20. Qxd8 {[%clk 0:01:28]}  Rxd8 {[%clk 0:00:35]} 21. Rfc1 {[%clk 0:01:28]}  Ne7 {[%clk 0:00:31]} 22. Rc7 {[%clk 0:01:22]}  Bf8 {[%clk 0:00:31]} 23. Rac1 {[%clk 0:01:20]}  Kf7 {[%clk 0:00:17]} 24. Rc8 {[%clk 0:01:17]} 1-0


[Site "https://www.chess.com"]

[Event "Titled Tuesday Blitz March 14 Late 2023"]
[White "Kornyukov, Alexey"]
[Black "Zampronha, Wladimir Camilo"]
[WhiteFideId "4150457"]
[BlackFideId "2103087"]
[WhiteElo "2352"]
[BlackElo "2176"]
[Result "0-1"]
[Round "10"]
[TimeControl "180+2"]
[Date "2023.03.14"]
[WhiteClock "0:00:01"]
[BlackClock "0:00:13"]

1. d4 {[%clk 0:03:00]}  Nf6 {[%clk 0:02:58]} 2. c4 {[%clk 0:03:00]}  e6 {[%clk 0:02:59]} 3. Nc3 {[%clk 0:02:59]}  Bb4 {[%clk 0:02:59]} 4. f3 {[%clk 0:02:59]}  c5 {[%clk 0:02:57]} 5. d5 {[%clk 0:02:58]}  exd5 {[%clk 0:02:57]} 6. cxd5 {[%clk 0:02:56]}  O-O {[%clk 0:02:57]} 7. e4 {[%clk 0:02:54]}  d6 {[%clk 0:02:57]} 8. Ne2 {[%clk 0:02:40]}  Nbd7 {[%clk 0:02:57]} 9. Ng3 {[%clk 0:02:34]}  Re8 {[%clk 0:02:56]} 10. Be2 {[%clk 0:02:29]}  Ne5 {[%clk 0:02:57]} 11. O-O {[%clk 0:02:28]}  c4 {[%clk 0:02:54]} 12. Be3 {[%clk 0:02:17]}  Qa5 {[%clk 0:02:41]} 13. Kh1 {[%clk 0:01:57]}  Bd7 {[%clk 0:02:36]} 14. f4 {[%clk 0:01:45]}  Neg4 {[%clk 0:02:35]} 15. Bd4 {[%clk 0:01:29]}  Bc5 {[%clk 0:02:30]} 16. h3 {[%clk 0:01:21]}  Ne3 {[%clk 0:02:28]} 17. Bxe3 {[%clk 0:01:18]}  Bxe3 {[%clk 0:02:29]} 18. Bxc4 {[%clk 0:01:15]}  Rac8 {[%clk 0:02:26]} 19. Qd3 {[%clk 0:01:07]}  Qc5 {[%clk 0:01:59]} 20. Bb3 {[%clk 0:01:03]}  Bf2 {[%clk 0:01:53]} 21. e5 {[%clk 0:00:41]}  Bxg3 {[%clk 0:01:00]} 22. Qxg3 {[%clk 0:00:38]}  Nh5 {[%clk 0:01:01]} 23. Qg5 {[%clk 0:00:25]}  g6 {[%clk 0:01:01]} 24. Rae1 {[%clk 0:00:18]}  Bf5 {[%clk 0:00:44]} 25. Qh4 {[%clk 0:00:16]}  Ng7 {[%clk 0:00:38]} 26. g4 {[%clk 0:00:15]}  Bd3 {[%clk 0:00:38]} 27. Rg1 {[%clk 0:00:10]}  dxe5 {[%clk 0:00:36]} 28. fxe5 {[%clk 0:00:10]}  b5 {[%clk 0:00:31]} 29. Qg3 {[%clk 0:00:09]}  b4 {[%clk 0:00:27]} 30. Na4 {[%clk 0:00:09]}  Qb5 {[%clk 0:00:24]} 31. d6 {[%clk 0:00:07]}  Rcd8 {[%clk 0:00:21]} 32. Re3 {[%clk 0:00:05]}  Bc4 {[%clk 0:00:21]} 33. Rge1 {[%clk 0:00:04]}  Bxb3 {[%clk 0:00:20]} 34. axb3 {[%clk 0:00:05]}  Qd5+ {[%clk 0:00:20]} 35. Kh2 {[%clk 0:00:04]}  Ne6 {[%clk 0:00:19]} 36. Qf2 {[%clk 0:00:04]}  Ng5 {[%clk 0:00:16]} 37. Rc1 {[%clk 0:00:02]}  Rxe5 {[%clk 0:00:15]} 38. Rc7 {[%clk 0:00:02]}  Rxe3 {[%clk 0:00:14]} 39. Qxe3 {[%clk 0:00:02]}  Nf3+ {[%clk 0:00:13]} 40. Kg3 {[%clk 0:00:01]}  Ne5 {[%clk 0:00:13]} 0-1


[Site "https://www.chess.com"]

[Event "Titled Tuesday Blitz March 14 Late 2023"]
[White "Todev, Simeon"]
[Black "Sabar, Ethmane Daouda"]
[WhiteFideId "2925133"]
[BlackFideId "19600097"]
[WhiteElo "1938"]
[BlackElo "1950"]
[Result "1/2-1/2"]
[Round "10"]
[TimeControl "180+2"]
[Date "2023.03.14"]
[WhiteClock "0:00:08"]
[BlackClock "0:00:07"]

1. e4 {[%clk 0:02:22]}  c5 {[%clk 0:02:57]} 2. Nf3 {[%clk 0:02:19]}  Nc6 {[%clk 0:02:54]} 3. c3 {[%clk 0:02:17]}  Nf6 {[%clk 0:02:52]} 4. Bd3 {[%clk 0:02:17]}  e5 {[%clk 0:02:48]} 5. Bc2 {[%clk 0:02:13]}  d6 {[%clk 0:02:48]} 6. d4 {[%clk 0:02:13]}  cxd4 {[%clk 0:02:42]} 7. cxd4 {[%clk 0:02:14]}  Bg4 {[%clk 0:02:35]} 8. dxe5 {[%clk 0:02:13]}  dxe5 {[%clk 0:02:24]} 9. O-O {[%clk 0:02:08]}  Qxd1 {[%clk 0:02:21]} 10. Rxd1 {[%clk 0:02:09]}  Bxf3 {[%clk 0:02:20]} 11. gxf3 {[%clk 0:02:06]}  Bb4 {[%clk 0:02:07]} 12. Be3 {[%clk 0:02:05]}  O-O {[%clk 0:02:06]} 13. a3 {[%clk 0:02:03]}  Be7 {[%clk 0:01:58]} 14. Nc3 {[%clk 0:02:01]}  Rfd8 {[%clk 0:01:56]} 15. Bb3 {[%clk 0:01:55]}  Nd4 {[%clk 0:01:54]} 16. Bxd4 {[%clk 0:01:51]}  exd4 {[%clk 0:01:55]} 17. Nd5 {[%clk 0:01:51]}  Kf8 {[%clk 0:01:42]} 18. Rxd4 {[%clk 0:01:26]}  Nxd5 {[%clk 0:01:37]} 19. Bxd5 {[%clk 0:01:22]}  Bf6 {[%clk 0:01:36]} 20. Rb4 {[%clk 0:01:22]}  Rab8 {[%clk 0:01:33]} 21. Rc1 {[%clk 0:01:18]}  Rd7 {[%clk 0:01:29]} 22. f4 {[%clk 0:01:12]}  b5 {[%clk 0:01:19]} 23. Rc5 {[%clk 0:00:58]}  a6 {[%clk 0:00:58]} 24. Rc6 {[%clk 0:00:53]}  a5 {[%clk 0:00:53]} 25. Rb3 {[%clk 0:00:52]}  a4 {[%clk 0:00:47]} 26. Rh3 {[%clk 0:00:37]}  Bxb2 {[%clk 0:00:44]} 27. Rxh7 {[%clk 0:00:36]}  Rbd8 {[%clk 0:00:31]} 28. Rb6 {[%clk 0:00:31]}  Bxa3 {[%clk 0:00:28]} 29. Rxb5 {[%clk 0:00:30]}  Bd6 {[%clk 0:00:25]} 30. Ra5 {[%clk 0:00:27]}  Bxf4 {[%clk 0:00:17]} 31. Rxa4 {[%clk 0:00:27]}  f5 {[%clk 0:00:16]} 32. exf5 {[%clk 0:00:11]}  Bxh2+ {[%clk 0:00:14]} 33. Kxh2 {[%clk 0:00:09]}  Rxd5 {[%clk 0:00:15]} 34. Ra7 {[%clk 0:00:08]}  R8d7 {[%clk 0:00:12]} 35. Ra8+ {[%clk 0:00:06]}  Kf7 {[%clk 0:00:12]} 36. Rh5 {[%clk 0:00:05]}  Kf6 {[%clk 0:00:10]} 37. Rf8+ {[%clk 0:00:04]}  Rf7 {[%clk 0:00:10]} 38. Rxf7+ {[%clk 0:00:03]}  Kxf7 {[%clk 0:00:11]} 39. Kg3 {[%clk 0:00:04]}  Kf6 {[%clk 0:00:11]} 40. Kf4 {[%clk 0:00:04]}  Rd4+ {[%clk 0:00:12]} 41. Ke3 {[%clk 0:00:05]}  Rd5 {[%clk 0:00:11]} 42. Ke4 {[%clk 0:00:05]}  Ra5 {[%clk 0:00:11]} 43. f4 {[%clk 0:00:03]}  Ra4+ {[%clk 0:00:10]} 44. Kf3 {[%clk 0:00:03]}  Ra1 {[%clk 0:00:09]} 45. Rg5 {[%clk 0:00:03]}  Rf1+ {[%clk 0:00:08]} 46. Ke3 {[%clk 0:00:03]}  Re1+ {[%clk 0:00:08]} 47. Kd4 {[%clk 0:00:03]}  Rf1 {[%clk 0:00:08]} 48. Ke4 {[%clk 0:00:03]}  Re1+ {[%clk 0:00:08]} 49. Kd3 {[%clk 0:00:03]}  Rf1 {[%clk 0:00:08]} 50. Ke3 {[%clk 0:00:04]}  Re1+ {[%clk 0:00:08]} 51. Kf2 {[%clk 0:00:04]}  Re8 {[%clk 0:00:06]} 52. Rh5 {[%clk 0:00:03]}  Re4 {[%clk 0:00:04]} 53. Kf3 {[%clk 0:00:03]}  Re1 {[%clk 0:00:04]} 54. Kg4 {[%clk 0:00:02]}  Rg1+ {[%clk 0:00:04]} 55. Kf3 {[%clk 0:00:03]}  Rf1+ {[%clk 0:00:04]} 56. Ke3 {[%clk 0:00:03]}  Re1+ {[%clk 0:00:05]} 57. Kf2 {[%clk 0:00:03]}  Re8 {[%clk 0:00:05]} 58. Rg5 {[%clk 0:00:04]}  Re4 {[%clk 0:00:05]} 59. Kg3 {[%clk 0:00:04]}  Re1 {[%clk 0:00:05]} 60. Rg4 {[%clk 0:00:04]}  Rg1+ {[%clk 0:00:05]} 61. Kh4 {[%clk 0:00:04]}  Rf1 {[%clk 0:00:05]} 62. Rg6+ {[%clk 0:00:02]}  Kxf5 {[%clk 0:00:05]} 63. Rxg7 {[%clk 0:00:03]}  Rxf4+ {[%clk 0:00:05]} 64. Kh5 {[%clk 0:00:03]}  Ke4 {[%clk 0:00:05]} 65. Re7+ {[%clk 0:00:04]}  Kf3 {[%clk 0:00:06]} 66. Kg5 {[%clk 0:00:04]}  Rg4+ {[%clk 0:00:05]} 67. Kf5 {[%clk 0:00:05]}  Rf4+ {[%clk 0:00:06]} 68. Kg5 {[%clk 0:00:04]}  Rg4+ {[%clk 0:00:06]} 69. Kh5 {[%clk 0:00:05]}  Rf4 {[%clk 0:00:06]} 70. Ra7 {[%clk 0:00:06]}  Re4 {[%clk 0:00:06]} 71. Ra3+ {[%clk 0:00:06]}  Kf4 {[%clk 0:00:06]} 72. Ra5 {[%clk 0:00:07]}  Re5+ {[%clk 0:00:06]} 73. Rxe5 {[%clk 0:00:08]}  Kxe5 {[%clk 0:00:07]} 1/2-1/2


[Site "https://www.chess.com"]

[Event "Titled Tuesday Blitz March 14 Late 2023"]
[White "Delgado Rosas, Fatima Alexandra"]
[Black "Lorenzo De La Riva, Lazaro"]
[WhiteFideId "6603963"]
[BlackFideId "2268809"]
[WhiteElo "2325"]
[BlackElo "2294"]
[Result "1-0"]
[Round "10"]
[TimeControl "180+2"]
[Date "2023.03.14"]
[WhiteClock "0:00:37"]
[BlackClock "0:01:31"]

1. d4 {[%clk 0:02:52]}  a6 {[%clk 0:03:00]} 2. Nf3 {[%clk 0:01:00]}  Nf6 {[%clk 0:03:01]} 3. e3 {[%clk 0:01:01]}  h6 {[%clk 0:02:53]} 4. Bd3 {[%clk 0:01:01]}  d5 {[%clk 0:02:49]} 5. b3 {[%clk 0:01:02]}  c5 {[%clk 0:02:34]} 6. Bb2 {[%clk 0:01:02]}  cxd4 {[%clk 0:02:32]} 7. exd4 {[%clk 0:01:03]}  Bg4 {[%clk 0:02:31]} 8. Nbd2 {[%clk 0:01:03]}  Nc6 {[%clk 0:02:28]} 9. O-O {[%clk 0:01:02]}  e6 {[%clk 0:02:28]} 10. h3 {[%clk 0:01:03]}  Bxf3 {[%clk 0:02:28]} 11. Nxf3 {[%clk 0:01:03]}  Be7 {[%clk 0:02:27]} 12. Qe2 {[%clk 0:01:03]}  Rc8 {[%clk 0:02:26]} 13. a3 {[%clk 0:01:04]}  O-O {[%clk 0:02:25]} 14. Ne5 {[%clk 0:01:03]}  Nxe5 {[%clk 0:02:25]} 15. dxe5 {[%clk 0:01:04]}  Nd7 {[%clk 0:02:24]} 16. f4 {[%clk 0:01:03]}  Nc5 {[%clk 0:02:24]} 17. Kh1 {[%clk 0:01:00]}  Nxd3 {[%clk 0:02:24]} 18. cxd3 {[%clk 0:01:00]}  Qb6 {[%clk 0:02:24]} 19. b4 {[%clk 0:00:59]}  a5 {[%clk 0:02:24]} 20. bxa5 {[%clk 0:00:55]}  Qb3 {[%clk 0:02:16]} 21. Rac1 {[%clk 0:00:55]}  Bxa3 {[%clk 0:02:14]} 22. Bxa3 {[%clk 0:00:54]}  Qxa3 {[%clk 0:02:15]} 23. Ra1 {[%clk 0:00:53]}  Qc3 {[%clk 0:02:13]} 24. Rfc1 {[%clk 0:00:52]}  Qxc1+ {[%clk 0:02:11]} 25. Rxc1 {[%clk 0:00:53]}  Rxc1+ {[%clk 0:02:10]} 26. Kh2 {[%clk 0:00:54]}  g6 {[%clk 0:02:07]} 27. Qb2 {[%clk 0:00:51]}  Rc7 {[%clk 0:02:06]} 28. h4 {[%clk 0:00:48]}  h5 {[%clk 0:02:05]} 29. Kh3 {[%clk 0:00:44]}  Rfc8 {[%clk 0:02:00]} 30. g4 {[%clk 0:00:45]}  hxg4+ {[%clk 0:01:59]} 31. Kxg4 {[%clk 0:00:45]}  Rc5 {[%clk 0:01:50]} 32. Kg5 {[%clk 0:00:45]}  Kg7 {[%clk 0:01:46]} 33. Qxb7 {[%clk 0:00:44]}  R5c7 {[%clk 0:01:38]} 34. Qb4 {[%clk 0:00:43]}  Rh8 {[%clk 0:01:36]} 35. Qd6 {[%clk 0:00:41]}  Rh5+ {[%clk 0:01:33]} 36. Kg4 {[%clk 0:00:42]}  Rc1 {[%clk 0:01:32]} 37. Qb6 {[%clk 0:00:38]}  Rg1+ {[%clk 0:01:31]} 38. Qxg1 {[%clk 0:00:37]} 1-0


[Site "https://www.chess.com"]

[Event "Titled Tuesday Blitz March 14 Late 2023"]
[White "Barash, Anton"]
[Black "Jimenez, Joaquin"]
[WhiteFideId "30935229"]
[BlackFideId "109860"]
[WhiteElo "2324"]
[BlackElo "2163"]
[Result "1-0"]
[Round "10"]
[TimeControl "180+2"]
[Date "2023.03.14"]
[WhiteClock "0:01:10"]
[BlackClock "0:02:10"]

1. e4 {[%clk 0:03:00]}  e6 {[%clk 0:02:56]} 2. d4 {[%clk 0:03:00]}  d5 {[%clk 0:02:56]} 3. Nc3 {[%clk 0:03:00]}  Bb4 {[%clk 0:02:55]} 4. e5 {[%clk 0:02:59]}  c5 {[%clk 0:02:54]} 5. a3 {[%clk 0:02:58]}  Bxc3+ {[%clk 0:02:53]} 6. bxc3 {[%clk 0:02:59]}  Ne7 {[%clk 0:02:53]} 7. Qg4 {[%clk 0:02:57]}  Nf5 {[%clk 0:02:52]} 8. Bd3 {[%clk 0:02:48]}  h5 {[%clk 0:02:50]} 9. Qg5 {[%clk 0:02:45]}  Qxg5 {[%clk 0:02:48]} 10. Bxg5 {[%clk 0:02:46]}  cxd4 {[%clk 0:02:48]} 11. Bxf5 {[%clk 0:02:46]}  exf5 {[%clk 0:02:49]} 12. cxd4 {[%clk 0:02:46]}  Nc6 {[%clk 0:02:50]} 13. Ne2 {[%clk 0:02:35]}  Be6 {[%clk 0:02:49]} 14. O-O {[%clk 0:02:28]}  Kd7 {[%clk 0:02:47]} 15. Rab1 {[%clk 0:02:25]}  b6 {[%clk 0:02:46]} 16. c4 {[%clk 0:02:08]}  dxc4 {[%clk 0:02:42]} 17. d5 {[%clk 0:02:08]}  Bxd5 {[%clk 0:02:42]} 18. Rfd1 {[%clk 0:02:08]}  Kc7 {[%clk 0:02:31]} 19. Rxd5 {[%clk 0:02:08]}  Rhe8 {[%clk 0:02:26]} 20. Bf4 {[%clk 0:01:58]}  Re6 {[%clk 0:02:22]} 21. Nd4 {[%clk 0:01:52]}  Nxd4 {[%clk 0:02:22]} 22. Rxd4 {[%clk 0:01:53]}  Rc6 {[%clk 0:02:17]} 23. e6+ {[%clk 0:01:53]}  Kb7 {[%clk 0:02:17]} 24. Rd7+ {[%clk 0:01:30]}  Ka6 {[%clk 0:02:16]} 25. e7 {[%clk 0:01:15]}  Re6 {[%clk 0:02:13]} 26. Rd8 {[%clk 0:01:12]}  Rxe7 {[%clk 0:02:10]} 27. Rxa8 {[%clk 0:01:11]}  c3 {[%clk 0:02:10]} 28. Rc8 {[%clk 0:01:10]} 1-0


[Site "https://www.chess.com"]

[Event "Titled Tuesday Blitz March 14 Late 2023"]
[White "Friedel, Tom"]
[Black "Vargas Pereda, Jesus Manue"]
[WhiteFideId "2002108"]
[BlackFideId "5115710"]
[WhiteElo "2269"]
[BlackElo "1914"]
[Result "1-0"]
[Round "10"]
[TimeControl "180+2"]
[Date "2023.03.14"]
[WhiteClock "0:00:38"]
[BlackClock "0:00:27"]

1. e4 {[%clk 0:03:00]}  c6 {[%clk 0:02:59]} 2. d4 {[%clk 0:03:00]}  d5 {[%clk 0:02:59]} 3. Nc3 {[%clk 0:03:01]}  dxe4 {[%clk 0:02:59]} 4. Nxe4 {[%clk 0:03:01]}  Bf5 {[%clk 0:02:59]} 5. Nc5 {[%clk 0:03:01]}  e5 {[%clk 0:02:42]} 6. Nxb7 {[%clk 0:03:01]}  Qxd4 {[%clk 0:02:42]} 7. Qxd4 {[%clk 0:02:56]}  exd4 {[%clk 0:02:42]} 8. Bd3 {[%clk 0:02:57]}  Bxd3 {[%clk 0:02:41]} 9. cxd3 {[%clk 0:02:57]}  Nf6 {[%clk 0:02:39]} 10. Nf3 {[%clk 0:02:55]}  Be7 {[%clk 0:02:36]} 11. Bf4 {[%clk 0:02:43]}  O-O {[%clk 0:02:32]} 12. O-O {[%clk 0:02:42]}  Nbd7 {[%clk 0:02:31]} 13. Nxd4 {[%clk 0:02:26]}  Nd5 {[%clk 0:02:25]} 14. Bg3 {[%clk 0:02:19]}  Bf6 {[%clk 0:02:21]} 15. Nxc6 {[%clk 0:02:08]}  Bxb2 {[%clk 0:01:49]} 16. Rab1 {[%clk 0:02:07]}  Bf6 {[%clk 0:01:45]} 17. d4 {[%clk 0:01:56]}  Nc3 {[%clk 0:01:40]} 18. Rb2 {[%clk 0:01:51]}  Nb6 {[%clk 0:01:33]} 19. Ne5 {[%clk 0:01:37]}  Nba4 {[%clk 0:01:04]} 20. Rc2 {[%clk 0:01:36]}  Nd5 {[%clk 0:01:02]} 21. Nc5 {[%clk 0:01:32]}  Nxc5 {[%clk 0:00:57]} 22. Rxc5 {[%clk 0:01:32]}  Rfd8 {[%clk 0:00:52]} 23. Rb1 {[%clk 0:01:31]}  Rab8 {[%clk 0:00:46]} 24. Rxb8 {[%clk 0:01:24]}  Rxb8 {[%clk 0:00:46]} 25. h3 {[%clk 0:01:25]}  Ne7 {[%clk 0:00:41]} 26. Rc7 {[%clk 0:01:14]}  Nf5 {[%clk 0:00:41]} 27. Rxa7 {[%clk 0:01:09]}  Nxd4 {[%clk 0:00:40]} 28. Nd7 {[%clk 0:01:04]}  Re8 {[%clk 0:00:30]} 29. Nxf6+ {[%clk 0:00:59]}  gxf6 {[%clk 0:00:30]} 30. Kh2 {[%clk 0:00:52]}  Re2 {[%clk 0:00:29]} 31. Bf4 {[%clk 0:00:40]}  Ne6 {[%clk 0:00:27]} 32. Bh6 {[%clk 0:00:38]} 1-0


[Site "https://www.chess.com"]

[Event "Titled Tuesday Blitz March 14 Late 2023"]
[White "Elissalt Cardenas, Hector"]
[Black "Lopez Perdomo, Juan David"]
[WhiteFideId "3500632"]
[BlackFideId "4405137"]
[WhiteElo "2202"]
[BlackElo "1965"]
[Result "1-0"]
[Round "10"]
[TimeControl "180+2"]
[Date "2023.03.14"]
[WhiteClock "0:02:07"]
[BlackClock "0:02:43"]

1. d4 {[%clk 0:03:00]}  c5 {[%clk 0:02:59]} 2. Nf3 {[%clk 0:03:01]}  e6 {[%clk 0:02:59]} 3. e4 {[%clk 0:03:00]}  cxd4 {[%clk 0:02:59]} 4. Nxd4 {[%clk 0:03:00]}  d6 {[%clk 0:03:00]} 5. Bd3 {[%clk 0:03:00]}  Nf6 {[%clk 0:03:01]} 6. Nc3 {[%clk 0:03:00]}  Be7 {[%clk 0:03:02]} 7. O-O {[%clk 0:03:00]}  O-O {[%clk 0:03:03]} 8. Be3 {[%clk 0:02:59]}  Nc6 {[%clk 0:03:03]} 9. Nb3 {[%clk 0:02:58]}  Bd7 {[%clk 0:03:02]} 10. f4 {[%clk 0:02:58]}  Rc8 {[%clk 0:03:01]} 11. Qf3 {[%clk 0:02:58]}  Na5 {[%clk 0:02:59]} 12. e5 {[%clk 0:02:48]}  dxe5 {[%clk 0:02:42]} 13. fxe5 {[%clk 0:02:46]}  Bc6 {[%clk 0:02:43]} 14. Qh3 {[%clk 0:02:45]}  Nd5 {[%clk 0:02:43]} 15. Qxh7# {[%clk 0:02:07]} 1-0


[Site "https://www.chess.com"]

[Event "Titled Tuesday Blitz March 14 Late 2023"]
[White "Mendez Machado, Andre"]
[Black "Abrosimov, Vladimir"]
[WhiteFideId "6603793"]
[BlackFideId "4166892"]
[WhiteElo "1984"]
[BlackElo "2336"]
[Result "0-1"]
[Round "10"]
[TimeControl "180+2"]
[Date "2023.03.14"]
[WhiteClock "0:00:08"]
[BlackClock "0:01:15"]

1. e4 {[%clk 0:02:57]}  c5 {[%clk 0:02:58]} 2. Nc3 {[%clk 0:02:57]}  d6 {[%clk 0:02:57]} 3. d3 {[%clk 0:02:56]}  Nf6 {[%clk 0:02:56]} 4. g3 {[%clk 0:02:56]}  e6 {[%clk 0:02:56]} 5. Bg2 {[%clk 0:02:56]}  Be7 {[%clk 0:02:56]} 6. Nge2 {[%clk 0:02:57]}  O-O {[%clk 0:02:57]} 7. O-O {[%clk 0:02:58]}  Nc6 {[%clk 0:02:56]} 8. f4 {[%clk 0:02:58]}  Ne8 {[%clk 0:02:55]} 9. h3 {[%clk 0:02:59]}  f5 {[%clk 0:02:56]} 10. g4 {[%clk 0:02:58]}  g6 {[%clk 0:02:50]} 11. exf5 {[%clk 0:02:46]}  gxf5 {[%clk 0:02:51]} 12. gxf5 {[%clk 0:02:36]}  exf5 {[%clk 0:02:51]} 13. Ng3 {[%clk 0:02:24]}  Nf6 {[%clk 0:02:48]} 14. Nh5 {[%clk 0:02:23]}  Be6 {[%clk 0:02:42]} 15. Re1 {[%clk 0:01:51]}  Bf7 {[%clk 0:02:38]} 16. Nxf6+ {[%clk 0:01:49]}  Bxf6 {[%clk 0:02:39]} 17. Be3 {[%clk 0:01:47]}  Nd4 {[%clk 0:02:38]} 18. Kh2 {[%clk 0:01:31]}  Rb8 {[%clk 0:02:27]} 19. Bd5 {[%clk 0:01:11]}  Kh8 {[%clk 0:02:14]} 20. Rg1 {[%clk 0:01:05]}  Qe7 {[%clk 0:02:06]} 21. Bf2 {[%clk 0:00:43]}  b5 {[%clk 0:01:52]} 22. Re1 {[%clk 0:00:37]}  Qd7 {[%clk 0:01:49]} 23. Bxf7 {[%clk 0:00:26]}  Qxf7 {[%clk 0:01:50]} 24. Re3 {[%clk 0:00:21]}  Rbe8 {[%clk 0:01:46]} 25. Qd2 {[%clk 0:00:15]}  b4 {[%clk 0:01:41]} 26. Ne2 {[%clk 0:00:15]}  Rxe3 {[%clk 0:01:37]} 27. Qxe3 {[%clk 0:00:12]}  Nxc2 {[%clk 0:01:37]} 28. Qc1 {[%clk 0:00:08]}  Nxa1 {[%clk 0:01:38]} 29. Qxa1 {[%clk 0:00:09]}  Rg8 {[%clk 0:01:37]} 30. Ng3 {[%clk 0:00:09]}  Bh4 {[%clk 0:01:33]} 31. Qe1 {[%clk 0:00:09]}  Bxg3+ {[%clk 0:01:31]} 32. Bxg3 {[%clk 0:00:09]}  Qxa2 {[%clk 0:01:28]} 33. Qe7 {[%clk 0:00:09]}  Qxb2+ {[%clk 0:01:25]} 34. Kh1 {[%clk 0:00:10]}  Rxg3 {[%clk 0:01:19]} 35. Qf8+ {[%clk 0:00:09]}  Rg8 {[%clk 0:01:19]} 36. Qxf5 {[%clk 0:00:08]}  Qg2# {[%clk 0:01:15]} 0-1


[Site "https://www.chess.com"]

[Event "Titled Tuesday Blitz March 14 Late 2023"]
[White "Jenkins, Drake"]
[Black "Torres Dominguez, David"]
[WhiteFideId "2022397"]
[BlackFideId "2220857"]
[WhiteElo "2243"]
[BlackElo "1999"]
[Result "0-1"]
[Round "10"]
[TimeControl "180+2"]
[Date "2023.03.14"]
[WhiteClock "0:00:01"]
[BlackClock "0:00:04"]

1. Nf3 {[%clk 0:02:53]}  d5 {[%clk 0:02:59]} 2. c4 {[%clk 0:02:53]}  dxc4 {[%clk 0:02:57]} 3. e3 {[%clk 0:02:53]}  e6 {[%clk 0:02:53]} 4. Bxc4 {[%clk 0:02:53]}  a6 {[%clk 0:02:52]} 5. d4 {[%clk 0:02:52]}  b5 {[%clk 0:02:44]} 6. Bd3 {[%clk 0:02:52]}  Bb7 {[%clk 0:02:37]} 7. O-O {[%clk 0:02:52]}  Nf6 {[%clk 0:02:33]} 8. Re1 {[%clk 0:02:52]}  Be7 {[%clk 0:02:32]} 9. e4 {[%clk 0:02:51]}  c5 {[%clk 0:02:26]} 10. e5 {[%clk 0:02:36]}  Nd5 {[%clk 0:02:23]} 11. dxc5 {[%clk 0:02:31]}  Bxc5 {[%clk 0:02:21]} 12. Nbd2 {[%clk 0:02:16]}  Nd7 {[%clk 0:02:17]} 13. Ne4 {[%clk 0:02:15]}  Be7 {[%clk 0:02:08]} 14. Qe2 {[%clk 0:01:57]}  O-O {[%clk 0:02:03]} 15. Bg5 {[%clk 0:01:56]}  h6 {[%clk 0:01:50]} 16. Bxe7 {[%clk 0:01:55]}  Qxe7 {[%clk 0:01:49]} 17. Bc2 {[%clk 0:01:36]}  Nb4 {[%clk 0:01:35]} 18. Bb3 {[%clk 0:01:33]}  Bxe4 {[%clk 0:01:29]} 19. Qxe4 {[%clk 0:01:31]}  a5 {[%clk 0:01:28]} 20. Bd1 {[%clk 0:01:11]}  Nc5 {[%clk 0:01:27]} 21. Qe2 {[%clk 0:01:10]}  Nbd3 {[%clk 0:01:23]} 22. Rf1 {[%clk 0:01:09]}  Rfd8 {[%clk 0:01:21]} 23. b3 {[%clk 0:00:57]}  Rd5 {[%clk 0:01:15]} 24. Bc2 {[%clk 0:00:55]}  Rad8 {[%clk 0:01:11]} 25. a3 {[%clk 0:00:44]}  Qd7 {[%clk 0:00:49]} 26. g3 {[%clk 0:00:43]}  Qc7 {[%clk 0:00:47]} 27. Rac1 {[%clk 0:00:35]}  Nxc1 {[%clk 0:00:41]} 28. Rxc1 {[%clk 0:00:33]}  b4 {[%clk 0:00:32]} 29. axb4 {[%clk 0:00:29]}  axb4 {[%clk 0:00:32]} 30. h4 {[%clk 0:00:20]}  Qb6 {[%clk 0:00:30]} 31. Qe3 {[%clk 0:00:15]}  Rb8 {[%clk 0:00:19]} 32. Kh2 {[%clk 0:00:14]}  Nd7 {[%clk 0:00:17]} 33. Qe4 {[%clk 0:00:14]}  Nc5 {[%clk 0:00:15]} 34. Qh7+ {[%clk 0:00:13]}  Kf8 {[%clk 0:00:16]} 35. Qh8+ {[%clk 0:00:13]}  Ke7 {[%clk 0:00:16]} 36. Qxg7 {[%clk 0:00:14]}  Nd7 {[%clk 0:00:10]} 37. Bg6 {[%clk 0:00:12]}  Rf8 {[%clk 0:00:09]} 38. Bh5 {[%clk 0:00:09]}  Qxf2+ {[%clk 0:00:09]} 39. Kh3 {[%clk 0:00:08]}  Rd3 {[%clk 0:00:06]} 40. Qxh6 {[%clk 0:00:04]}  Rxf3 {[%clk 0:00:04]} 41. Qg5+ {[%clk 0:00:04]}  f6 {[%clk 0:00:04]} 42. Qg7+ {[%clk 0:00:03]}  Kd8 {[%clk 0:00:04]} 43. Bxf3 {[%clk 0:00:02]}  Qxf3 {[%clk 0:00:04]} 44. exf6 {[%clk 0:00:01]}  Rxf6 {[%clk 0:00:03]} 45. Qg8+ {[%clk 0:00:01]}  Rf8 {[%clk 0:00:03]} 46. Qxe6 {[%clk 0:00:01]}  Qf5+ {[%clk 0:00:03]} 47. Qxf5 {[%clk 0:00:01]}  Rxf5 {[%clk 0:00:04]} 48. Rc4 {[%clk 0:00:01]}  Re5 {[%clk 0:00:04]} 0-1


[Site "https://www.chess.com"]